bitfinex/quotes_SOLUSD_20240925
["timestamp","ask_amount","ask_price","bid_price","bid_amount"]
[1727255741700,6.6355,150.71,150.67,23.2286]
[1727255742516,6.6358,150.7,150.65,6.8818804]
[1727255742813,16.5851,150.74,150.65,6.8818804]
[1727255742814,20.0,150.74,150.65,0.2443804]
[1727255743001,23.776884,150.73,150.65,0.2443804]
[1727255743387,6.6368,150.68,150.65,0.2443804]
[1727255743708,6.637,150.67,150.65,0.2443804]
[1727255750289,6.6374,150.66,150.65,0.2443804]
[1727255752812,30.414284,150.66,150.65,0.2443804]
[1727255756712,30.414284,150.66,150.61,0.2443804]
[1727255756713,6.6392,150.62,150.61,0.2443804]
[1727255760211,6.6388,150.63,150.61,0.2443804]
[1727255760404,6.6392,150.62,150.61,0.2443804]
[1727255761218,6.6384,150.64,150.61,0.2443804]
[1727255761513,6.6382,150.65,150.61,0.2443804]
[1727255761714,6.6375,150.66,150.61,6.8839804]
[1727255761917,6.6375,150.66,150.62,6.6391]
[1727255762316,6.6375,150.66,150.61,22.6290804]
[1727255763007,6.6379,150.65,150.61,22.6290804]
[1727255764312,6.6391,150.63,150.61,15.9895804]
[1727255764503,40.369784,150.67,150.61,15.9895804]
[1727255764709,6.6387,150.63,150.61,15.9895804]
[1727255765818,40.369784,150.67,150.61,15.9895804]
[1727255766026,6.6381,150.65,150.61,22.6290804]
[1727255769608,6.6381,150.65,150.61,15.9895804]
[1727255771620,40.369784,150.67,150.61,15.9895804]
[1727255771810,6.6383,150.64,150.61,15.9895804]
[1727255773928,6.6381,150.65,150.61,23.9569862]
[1727255775503,6.6381,150.65,150.61,22.6291804]
[1727255778115,6.6369,150.68,150.63,6.6383]
[1727255778327,6.6369,150.68,150.64,6.6382]
[1727255779213,6.6369,150.68,150.63,23.2352]
[1727255779412,20.0,150.69,150.63,23.2352]
[1727255779627,6.6371,150.67,150.63,23.2352]
[1727255779822,43.776884,150.69,150.63,16.5966]
[1727255780029,6.6379,150.65,150.62,6.639]
[1727255780532,6.6379,150.65,150.61,28.8723804]
[1727255781210,6.6375,150.66,150.62,6.639]
[1727255785229,6.6379,150.65,150.61,28.8723804]
[1727255789217,16.5893,150.7,150.61,22.2329804]
[1727255789218,6.6383,150.64,150.61,22.2329804]
[1727255789424,6.6382,150.65,150.61,28.8722804]
[1727255789744,20.0,150.69,150.62,1.32769815]
[1727255789924,6.6371,150.67,150.63,6.6386]
[1727255790232,6.6371,150.67,150.62,1.32769815]
[1727255790424,6.6371,150.67,150.63,6.6386]
[1727255790738,20.0,150.69,150.64,1.32755612]
[1727255791033,6.6366,150.68,150.64,7.96575612]
[1727255791215,6.6366,150.68,150.64,6.6382]
[1727255794012,6.6366,150.68,150.64,7.96564063]
[1727255795840,6.6366,150.68,150.64,6.6382]
[1727255796031,6.6362,150.69,150.65,6.6376]
[1727255796237,6.6362,150.69,150.63,16.5966]
[1727255796628,6.6367,150.68,150.64,7.96557562]
[1727255797136,16.5873,150.72,150.65,6.6377]
[1727255797325,16.5844,150.75,150.66,22.8881]
[1727255797517,16.5844,150.75,150.66,16.2508]
[1727255797719,6.6361,150.69,150.66,16.2508]
[1727255799136,6.636,150.7,150.66,16.2508]
[1727255799328,6.6365,150.69,150.66,16.2508]
[1727255800918,6.6368,150.68,150.66,16.2508]
[1727255801917,43.776884,150.72,150.66,16.2508]
[1727255802123,6.637,150.67,150.66,16.2508]
[1727255803627,6.637,150.67,150.63,6.6386]
[1727255804540,6.6376,150.66,150.62,32.5095]
[1727255805513,6.6376,150.66,150.62,40.47631778]
[1727255810223,6.6376,150.66,150.62,39.1487]
[1727255823078,6.6382,150.65,150.62,15.9121]
[1727255823369,6.6384,150.64,150.62,15.9121]
[1727255826663,6.6384,150.64,150.61,0.2443804]
[1727255841658,6.6384,150.64,150.61,0.2443804]
[1727255843647,6.6389,150.63,150.61,0.2443804]
[1727255854056,6.0411,150.62,150.61,0.2443804]
[1727255854261,6.0411,150.62,150.56,0.4240207]
[1727255854262,6.6405,150.59,150.56,0.4240207]
[1727255854467,6.0411,150.62,150.56,0.4240207]
[1727255854672,44.163784,150.64,150.56,0.4240207]
[1727255854977,6.6401,150.6,150.56,0.4240207]
[1727255855280,6.6405,150.59,150.56,0.4240207]
[1727255855586,6.6412,150.58,150.56,0.4240207]
[1727255864475,16.5977,150.63,150.56,0.4240207]
[1727255864665,6.6406,150.59,150.56,0.4240207]
[1727255865181,6.6411,150.58,150.56,0.4240207]
[1727255877921,6.6409,150.59,150.56,0.4240207]
[1727255878408,6.6409,150.59,150.57,1.32815684]
[1727255878806,20.0,150.62,150.56,1.75217356]
[1727255878984,6.6409,150.58,150.56,1.75217356]
[1727255879895,6.6409,150.58,150.56,0.4240207]
[1727255884415,6.6402,150.6,150.57,17.0146625]
[1727255886113,6.6398,150.61,150.57,23.6559625]
[1727255887393,16.5977,150.63,150.57,23.6559625]
[1727255887594,6.6401,150.6,150.57,23.6559625]
[1727255888194,6.6401,150.6,150.57,15.6865]
[1727255888916,6.6401,150.6,150.58,1.32795526]
[1727255890492,6.6395,150.62,150.58,7.96885526]
[1727255891600,6.6395,150.62,150.58,6.6409]
[1727255891784,20.0,150.65,150.57,15.6865]
[1727255891985,6.6406,150.59,150.57,15.6865]
[1727255892408,40.372984,150.64,150.57,15.6865]
[1727255892611,6.6402,150.6,150.58,1.32804606]
[1727255893410,16.5961,150.64,150.58,1.32804606]
[1727255893605,6.6397,150.61,150.58,1.32804606]
[1727255894106,16.5961,150.64,150.58,1.32804606]
[1727255894293,6.6393,150.62,150.58,7.96894606]
[1727255894901,16.5961,150.64,150.58,1.32804606]
[1727255895213,6.6397,150.61,150.57,22.3278]
[1727255901097,16.5961,150.64,150.58,1.32785503]
[1727255901414,16.5961,150.64,150.57,15.6865]
[1727255901602,6.6405,150.59,150.57,15.6865]
[1727255907808,16.5961,150.64,150.57,15.6865]
[1727255908122,6.6402,150.6,150.57,17.01455067]
[1727255908420,6.6399,150.61,150.57,23.65585067]
[1727255909817,6.6399,150.61,150.57,22.3278]
[1727255911228,6.6402,150.6,150.57,15.6865]
[1727255913634,16.5961,150.64,150.57,15.6865]
[1727255913635,6.6405,150.59,150.57,15.6865]
[1727255914017,20.0,150.65,150.57,15.6865]
[1727255914206,6.6409,150.58,150.57,15.6865]
[1727255915335,6.6406,150.59,150.57,15.6865]
[1727255917635,6.6402,150.6,150.57,15.6865]
[1727255920828,6.6397,150.61,150.58,1.32805786]
[1727255921026,6.6397,150.61,150.57,22.3279]
[1727255922137,6.6393,150.62,150.58,6.6409]
[1727255922343,36.5956,150.65,150.57,15.6865]
[1727255923443,6.6396,150.61,150.57,22.3278]
[1727255925750,6.6401,150.6,150.57,15.6865]
[1727255926620,6.6406,150.59,150.57,15.6865]
[1727255927138,6.6406,150.59,150.56,0.4240207]
[1727255927139,16.5996,150.61,150.56,0.4240207]
[1727255927551,6.6414,150.57,150.56,0.4240207]
[1727255929653,6.6403,150.6,150.56,0.4240207]
[1727255930354,6.641,150.58,150.56,0.4240207]
[1727255930529,20.0,150.62,150.56,0.4240207]
[1727255930851,6.6405,150.59,150.56,0.4240207]
[1727255948158,6.6411,150.58,150.56,0.4240207]
[1727255955043,6.6406,150.59,150.56,0.4240207]
[1727255955245,6.6402,150.6,150.57,1.32811141]
[1727255955453,9.7768,150.61,150.58,15.5235]
[1727255955764,9.7768,150.61,150.59,1.32790464]
[1727255960577,9.7768,150.61,150.58,15.5235]
[1727255962767,3.137,150.61,150.58,15.5235]
[1727255962969,3.137,150.61,150.6,6.6401]
[1727255967574,3.137,150.61,150.59,13.1807]
[1727255970366,3.137,150.61,150.58,32.1256]
[1727255970588,3.137,150.61,150.58,38.7664]
[1727255971381,3.137,150.61,150.58,32.1256]
[1727255971679,9.7767,150.61,150.58,32.1256]
[1727255971858,9.7767,150.61,150.58,15.5235]
[1727255973593,6.6401,150.6,150.58,15.5235]
[1727255973874,6.6401,150.6,150.56,13.3507207]
[1727255974985,6.6408,150.59,150.56,0.4240207]
[1727255976254,3.137,150.61,150.56,0.4240207]
[1727255976465,6.6402,150.6,150.56,7.0658207]
[1727255977660,6.6402,150.6,150.57,1.32804356]
[1727255978178,9.7768,150.61,150.57,1.32804356]
[1727255980363,9.7768,150.61,150.56,7.0658207]
[1727255982865,9.7768,150.61,150.56,0.4240207]
[1727255983074,9.7768,150.61,150.57,7.96894248]
[1727255984367,3.137,150.61,150.56,0.4240207]
[1727255984588,6.641,150.58,150.56,0.4240207]
[1727255989172,3.137,150.61,150.56,0.4240207]
[1727255989375,6.641,150.58,150.56,0.4240207]
[1727255989682,6.6414,150.57,150.56,0.4240207]
[1727255989861,6.641,150.58,150.56,0.4240207]
[1727255990280,6.6414,150.57,150.56,0.4240207]
[1727255996692,6.6414,150.57,150.54,12.7306207]
[1727256001000,6.6418,150.56,150.54,12.7306207]
[1727256001299,6.6418,150.56,150.52,30.0736804]
[1727256001690,16.6004,150.6,150.52,30.0736804]
[1727256001691,6.6415,150.57,150.53,6.6431]
[1727256004012,16.6034,150.58,150.52,0.2443804]
[1727256004311,6.6427,150.54,150.52,0.2443804]
[1727256004679,6.6431,150.53,150.52,0.2443804]
[1727256004906,23.776884,150.59,150.52,0.2443804]
[1727256005206,6.6431,150.54,150.52,0.2443804]
[1727256005384,16.602,150.59,150.52,0.2443804]
[1727256005587,6.6424,150.55,150.52,0.2443804]
[1727256007390,6.6428,150.54,150.52,0.2443804]
[1727256009991,6.6423,150.55,150.52,0.2443804]
[1727256015587,6.6427,150.54,150.52,0.2443804]
[1727256016586,6.6428,150.54,150.52,0.2443804]
[1727256017108,16.602,150.59,150.52,0.2443804]
[1727256017298,6.6431,150.53,150.52,0.2443804]
[1727256028223,30.419984,150.53,150.52,0.2443804]
[1727256028610,50.419984,150.53,150.52,0.2443804]
[1727256030808,26.6431,150.53,150.52,0.2443804]
[1727256031423,50.419984,150.53,150.52,0.2443804]
[1727256042320,43.776884,150.53,150.47,16.4999207]
[1727256042532,6.645,150.49,150.47,16.4999207]
[1727256042821,6.6454,150.48,150.47,0.4240207]
[1727256043132,50.422284,150.48,150.47,0.4240207]
[1727256045939,6.6471,150.44,150.43,0.2443804]
[1727256047023,50.423984,150.44,150.43,0.2443804]
[1727256047536,43.776884,150.43,150.38,0.4240207]
[1727256047831,6.649,150.4,150.38,0.4240207]
[1727256048343,6.6493,150.39,150.38,0.4240207]
[1727256060649,6.649,150.4,150.38,0.4240207]
[1727256061217,6.6485,150.41,150.38,0.4240207]
[1727256061633,8.7102856,150.48,150.43,6.6475]
[1727256061835,6.4939,150.53,150.4,17.95148235]
[1727256062028,6.6464,150.46,150.42,6.6479]
[1727256062238,6.6464,150.46,150.41,6.6484]
[1727256062538,6.6468,150.45,150.4,16.6219]
[1727256062715,6.6462,150.46,150.42,6.6478]
[1727256063043,16.6116,150.5,150.41,6.6484]
[1727256063044,6.6467,150.45,150.41,6.6484]
[1727256063223,6.6467,150.45,150.4,23.2706]
[1727256063421,16.6116,150.5,150.41,1.32956711]
[1727256063626,16.6116,150.5,150.4,16.6219]
[1727256063930,6.6471,150.45,150.41,6.6484]
[1727256064513,6.6471,150.45,150.4,16.6219]
[1727256064717,6.6471,150.45,150.4,23.2707]
[1727256064917,6.6472,150.44,150.4,23.2707]
[1727256066014,6.6468,150.45,150.4,23.2707]
[1727256066248,6.6472,150.44,150.4,23.2707]
[1727256066833,6.6472,150.44,150.4,24.60027366]
[1727256067336,6.6462,150.47,150.42,6.6477]
[1727256067531,6.6467,150.46,150.41,13.0515]
[1727256067839,6.6468,150.45,150.41,13.0515]
[1727256069518,6.6468,150.45,150.41,6.4032]
[1727256069720,6.6468,150.45,150.41,13.0516]
[1727256071345,6.6473,150.44,150.41,6.4032]
[1727256075352,43.776884,150.49,150.41,6.4032]
[1727256075573,6.6468,150.45,150.41,6.4032]
[1727256075750,23.776884,150.49,150.41,6.4032]
[1727256075751,6.6471,150.44,150.41,6.4032]
[1727256078569,6.647,150.45,150.41,6.4032]
[1727256078943,23.776884,150.47,150.41,6.4032]
[1727256079161,6.6472,150.44,150.41,6.4032]
[1727256079767,20.0,150.51,150.42,1.32953492]
[1727256079979,6.6461,150.47,150.43,16.228]
[1727256080265,36.6107,150.51,150.45,6.6466]
[1727256080266,6.645,150.49,150.45,6.6466]
[1727256080472,36.6107,150.51,150.43,22.8753]
[1727256080640,36.6107,150.51,150.43,16.228]
[1727256080641,6.6464,150.46,150.43,16.228]
[1727256081045,36.6107,150.51,150.44,7.97637041]
[1727256081245,6.6448,150.5,150.46,6.646]
[1727256081469,6.645,150.49,150.45,23.2629]
[1727256081680,6.645,150.49,150.45,16.6163]
[1727256081849,6.645,150.49,150.46,1.32923452]
[1727256082546,6.645,150.49,150.45,16.6163]
[1727256082970,6.6454,150.48,150.45,16.6163]
[1727256083170,6.6454,150.48,150.44,6.6471]
[1727256083362,16.8517804,150.54,150.43,16.228]
[1727256083363,6.6461,150.47,150.43,16.228]
[1727256084267,6.6461,150.47,150.44,1.32924208]
[1727256084454,6.6455,150.48,150.44,1.32924208]
[1727256085579,6.6462,150.47,150.43,16.228]
[1727256086468,6.6464,150.46,150.43,16.228]
[1727256086664,6.6467,150.45,150.43,16.228]
[1727256086852,6.6471,150.44,150.43,16.228]
[1727256087252,6.6467,150.45,150.43,16.228]
[1727256089481,6.6471,150.44,150.43,16.228]
[1727256093579,6.648,150.43,150.41,6.4032]
[1727256096358,43.776884,150.47,150.41,6.4032]
[1727256096564,76.997384,150.51,150.41,6.4032]
[1727256096565,6.648,150.42,150.41,6.4032]
[1727256098475,16.6161,150.46,150.41,6.4032]
[1727256098681,6.6477,150.43,150.41,6.4032]
[1727256099180,6.648,150.42,150.41,6.4032]
[1727256100062,6.6486,150.41,150.39,15.9935]
[1727256101081,6.6481,150.42,150.39,15.9935]
[1727256102359,6.6485,150.41,150.39,15.9935]
[1727256103387,16.6161,150.46,150.39,15.9935]
[1727256103590,6.6489,150.4,150.39,15.9935]
[1727256108488,6.6493,150.39,150.38,0.4240207]
[1727256118889,30.426184,150.39,150.38,0.4240207]
[1727256120379,6.6493,150.39,150.38,0.4240207]
[1727256120606,50.426184,150.39,150.38,0.4240207]
[1727256123781,50.426184,150.39,150.34,0.2443804]
[1727256123782,6.6511,150.35,150.34,0.2443804]
[1727256129894,30.427984,150.35,150.34,0.2443804]
[1727256130095,6.6511,150.35,150.34,0.2443804]
[1727256130497,30.427984,150.35,150.34,0.2443804]
[1727256130691,50.427984,150.35,150.34,0.2443804]
[1727256132700,26.6511,150.35,150.34,0.2443804]
[1727256133100,50.427984,150.35,150.34,0.2443804]
[1727256133608,26.6511,150.35,150.34,0.2443804]
[1727256135391,6.6511,150.35,150.34,0.2443804]
[1727256139400,30.427984,150.35,150.34,0.2443804]
[1727256139609,50.427984,150.35,150.34,0.2443804]
[1727256139801,26.6511,150.35,150.34,0.2443804]
[1727256139993,6.6511,150.35,150.34,0.2443804]
[1727256143113,6.6507,150.36,150.34,0.2443804]
[1727256143706,43.776884,150.4,150.34,0.2443804]
[1727256143898,6.6511,150.35,150.34,0.2443804]
[1727256159535,30.427984,150.35,150.34,0.2443804]
[1727256160231,50.427984,150.35,150.34,0.2443804]
[1727256163619,26.6511,150.35,150.34,0.2443804]
[1727256164316,50.427984,150.35,150.34,0.2443804]
[1727256170228,26.6511,150.35,150.34,0.2443804]
[1727256185856,6.6511,150.35,150.34,0.2443804]
[1727256186074,6.6507,150.36,150.34,16.1029804]
[1727256186362,16.62,150.43,150.35,1.33021896]
[1727256186566,6.6494,150.39,150.35,1.33021896]
[1727256186739,6.6498,150.38,150.35,1.33021896]
[1727256186945,6.6494,150.39,150.35,1.33021896]
[1727256187831,6.6498,150.38,150.35,1.33021896]
[1727256189859,6.6498,150.38,150.34,25.70510558]
[1727256190458,6.6498,150.38,150.34,16.1029804]
[1727256190776,6.6503,150.37,150.34,16.1029804]
[1727256191763,6.6503,150.37,150.34,17.43309927]
[1727256193427,20.0,150.41,150.34,17.43309927]
[1727256193634,6.6499,150.38,150.34,17.43309927]
[1727256193858,23.776884,150.42,150.34,24.08429927]
[1727256194071,6.6495,150.39,150.34,33.68642445]
[1727256194245,6.6498,150.38,150.34,24.08429927]
[1727256194557,6.6498,150.38,150.34,16.1029804]
[1727256196862,23.776884,150.4,150.34,16.1029804]
[1727256197063,6.6511,150.35,150.34,16.1029804]
[1727256197243,6.6508,150.36,150.34,16.1029804]
[1727256198455,6.6503,150.37,150.34,17.43311946]
[1727256200545,6.6499,150.38,150.34,32.35620558]
[1727256201668,6.6499,150.38,150.34,22.7540804]
[1727256201870,6.6503,150.37,150.34,16.1029804]
[1727256203063,40.11908885,150.45,150.34,16.1029804]
[1727256203064,16.6238,150.39,150.34,16.1029804]
[1727256204071,6.6511,150.35,150.34,16.1029804]
[1727256205250,6.6511,150.35,150.34,0.2443804]
[1727256217381,30.427984,150.35,150.34,0.2443804]
[1727256217559,50.427984,150.35,150.34,0.2443804]
[1727256228598,26.6511,150.35,150.34,0.2443804]
[1727256230199,50.427984,150.35,150.34,0.2443804]
[1727256235888,26.6511,150.35,150.34,0.2443804]
[1727256241791,50.427984,150.35,150.34,0.2443804]
[1727256248206,50.427984,150.35,150.34,8.04e-05]
[1727256248541,57.31087205,150.35,150.34,8.04e-05]
[1727256253421,33.53398805,150.35,150.34,8.04e-05]
[1727256253922,26.6511,150.35,150.34,8.04e-05]
[1727256254831,50.427984,150.35,150.34,8.04e-05]
[1727256257628,26.6511,150.35,150.34,8.04e-05]
[1727256263027,50.427984,150.35,150.34,8.04e-05]
[1727256265943,6.6511,150.35,150.34,8.04e-05]
[1727256267433,26.6511,150.35,150.34,8.04e-05]
[1727256274225,50.427984,150.35,150.34,8.04e-05]
[1727256303458,26.6511,150.35,150.34,8.04e-05]
[1727256303663,6.6511,150.35,150.34,8.04e-05]
[1727256303971,6.6511,150.35,150.34,15.6298804]
[1727256304866,6.6505,150.37,150.35,6.6485]
[1727256305037,6.6505,150.37,150.35,7.97853008]
[1727256306156,16.6208,150.42,150.36,16.4355]
[1727256306362,20.0,150.41,150.36,16.4355]
[1727256307347,6.6502,150.37,150.36,16.4355]
[1727256308151,6.6499,150.38,150.36,16.4355]
[1727256308348,20.0,150.41,150.37,1.32990603]
[1727256308349,6.6494,150.39,150.37,1.32990603]
[1727256311651,6.6494,150.39,150.36,16.4355]
[1727256312570,6.6502,150.38,150.36,16.4355]
[1727256312758,6.6502,150.37,150.36,16.4355]
[1727256313466,20.0,150.41,150.36,16.4355]
[1727256313774,6.6498,150.38,150.36,16.4355]
[1727256317483,6.6495,150.39,150.36,16.4355]
[1727256318260,20.0,150.41,150.36,16.4355]
[1727256318465,6.6499,150.38,150.36,16.4355]
[1727256322176,6.6502,150.37,150.36,16.4355]
[1727256335372,6.6511,150.35,150.34,8.04e-05]
[1727256336283,50.427984,150.35,150.34,8.04e-05]
[1727256346094,26.6511,150.35,150.34,8.04e-05]
[1727256364704,50.427984,150.35,150.34,8.04e-05]
[1727256365003,6.6533,150.3,150.29,0.4240207]
[1727256395730,6.6533,150.3,150.25,0.2443804]
[1727256395731,26.6551,150.26,150.25,8.04e-05]
[1727256397529,50.431984,150.26,150.25,8.04e-05]
[1727256397706,26.6551,150.26,150.25,8.04e-05]
[1727256398820,6.6551,150.26,150.25,8.04e-05]
[1727256437955,6.6547,150.27,150.25,8.04e-05]
[1727256439349,6.6534,150.3,150.26,23.1383]
[1727256439548,6.6534,150.3,150.27,1.33066602]
[1727256439732,6.6534,150.3,150.26,23.1383]
[1727256439928,6.6534,150.3,150.26,29.7933]
[1727256440736,6.6534,150.3,150.26,23.1383]
[1727256442333,6.6539,150.29,150.26,23.1383]
[1727256444749,6.653,150.31,150.27,1.33074502]
[1727256444958,6.6525,150.32,150.27,31.33074502]
[1727256445256,6.6521,150.33,150.29,6.6538]
[1727256445465,6.6521,150.33,150.28,16.6352]
[1727256445635,6.6521,150.33,150.28,23.2893]
[1727256446160,6.6521,150.33,150.29,6.6537]
[1727256447255,6.6521,150.33,150.28,23.2893]
[1727256449842,6.6525,150.32,150.28,23.2893]
[1727256452059,16.8718,150.36,150.26,23.1383]
[1727256452255,6.6532,150.31,150.27,6.6545]
[1727256452871,6.6532,150.31,150.28,1.33059916]
[1727256453544,6.6532,150.31,150.27,6.6545]
[1727256454740,6.6532,150.31,150.28,1.3305308]
[1727256459060,6.6532,150.31,150.27,6.6545]
[1727256460262,6.6541,150.29,150.26,23.1383]
[1727256460463,6.6534,150.3,150.26,29.7933]
[1727256461344,6.653,150.31,150.27,6.6546]
[1727256462266,6.653,150.31,150.28,1.33059862]
[1727256462493,6.6527,150.32,150.28,7.98479862]
[1727256462647,20.2443,150.36,150.28,1.33059862]
[1727256462969,6.6524,150.32,150.28,7.98459862]
[1727256463545,6.6524,150.32,150.28,6.654]
[1727256464843,6.653,150.31,150.27,23.291]
[1727256467361,6.6534,150.3,150.27,16.6364]
[1727256475679,6.6532,150.31,150.27,23.291]
[1727256478272,6.6533,150.3,150.27,23.291]
[1727256485478,6.6533,150.3,150.27,16.6364]
[1727256488577,6.6533,150.3,150.26,29.7933]
[1727256491186,6.6533,150.3,150.27,1.33072828]
[1727256491684,6.6533,150.3,150.26,29.7933]
[1727256491984,6.6533,150.3,150.27,1.33072548]
[1727256496590,6.6533,150.3,150.27,7.98532548]
[1727256496983,6.6531,150.31,150.27,7.98532548]
[1727256497585,20.2443,150.36,150.27,7.98532548]
[1727256497586,6.6523,150.33,150.29,6.6537]
[1727256497791,6.6523,150.33,150.3,1.33044337]
[1727256498679,6.6523,150.33,150.29,1.33041569]
[1727256498888,6.6523,150.33,150.29,7.98411569]
[1727256500096,6.6523,150.33,150.29,6.6537]
[1727256500389,20.2443,150.36,150.28,16.6353]
[1727256500572,6.6525,150.32,150.28,23.2892]
[1727256502488,6.6529,150.31,150.28,16.6353]
[1727256505394,6.6534,150.3,150.26,29.7931]
[1727256508292,57.034484,150.35,150.26,23.1383]
[1727256508493,6.6546,150.27,150.23,6.6563]
[1727256510177,26.94807914,150.34,150.22,38.8841]
[1727256510480,20.0,150.28,150.22,22.2425]
[1727256510676,6.6552,150.26,150.22,28.8993]
[1727256512100,20.0,150.28,150.23,7.98746342]
[1727256512397,6.6543,150.28,150.24,6.6558]
[1727256512585,6.6543,150.28,150.25,1.33089612]
[1727256513178,20.0,150.31,150.25,1.33089612]
[1727256513373,6.6539,150.29,150.25,1.33089612]
[1727256513585,6.6539,150.29,150.25,6.6554]
[1727256517187,6.6545,150.28,150.26,1.33070965]
[1727256517504,6.6545,150.28,150.24,6.6559]
[1727256517799,6.6545,150.28,150.24,7.98675792]
[1727256517990,6.6545,150.28,150.24,6.6559]
[1727256523611,6.6546,150.27,150.23,23.297]
[1727256525294,16.6337,150.3,150.22,22.2425]
[1727256525815,6.6552,150.26,150.22,22.2425]
[1727256526006,6.6552,150.26,150.22,28.8993]
[1727256530805,20.0,150.29,150.23,1.33097575]
[1727256531010,6.6548,150.27,150.23,7.98727575]
[1727256531202,6.6543,150.28,150.23,7.98727575]
[1727256531409,6.6548,150.27,150.23,6.6563]
[1727256532613,6.6552,150.26,150.22,45.541]
[1727256533635,20.0,150.29,150.22,22.2425]
[1727256533922,6.6556,150.25,150.22,22.2425]
[1727256534315,6.6573,150.21,150.2,0.3529838]
[1727256534628,6.6591,150.17,150.16,0.345965]
[1727256552734,39.2897,150.28,150.17,21.7218]
[1727256553030,6.6572,150.22,150.18,10.93344658]
[1727256553441,6.6572,150.22,150.18,17.59204658]
[1727256554242,6.6572,150.22,150.18,16.26072518]
[1727256555607,39.2897,150.28,150.17,21.7218]
[1727256555809,6.6586,150.18,150.17,21.7218]
[1727256556012,16.6413,150.23,150.17,21.7218]
[1727256556240,6.6585,150.19,150.17,21.7218]
[1727256557226,16.6413,150.23,150.16,0.345965]
[1727256557446,16.6438,150.21,150.16,0.345965]
[1727256557743,6.6587,150.18,150.16,0.345965]
[1727256569226,6.6591,150.17,150.16,0.345965]
[1727256575737,6.6588,150.18,150.16,0.345965]
[1727256581444,16.6438,150.21,150.16,0.345965]
[1727256584069,6.6591,150.17,150.16,0.345965]
[1727256584449,20.0,150.2,150.16,0.345965]
[1727256584744,6.6588,150.18,150.16,0.345965]
[1727256584949,6.6591,150.17,150.16,0.345965]
[1727256603464,30.435984,150.17,150.16,0.345965]
[1727256603704,6.6591,150.17,150.16,0.345965]
[1727256607963,30.435984,150.17,150.16,0.345965]
[1727256618362,6.6591,150.17,150.16,0.345965]
[1727256629381,6.6588,150.18,150.16,0.345965]
[1727256629585,16.6408,150.24,150.16,0.345965]
[1727256629772,6.6576,150.21,150.17,7.99060408]
[1727256629959,6.6574,150.21,150.17,6.659]
[1727256630288,6.6569,150.22,150.18,6.6583]
[1727256630471,6.6563,150.24,150.19,1.33144284]
[1727256630787,6.6566,150.23,150.19,6.6581]
[1727256632276,6.6566,150.23,150.18,23.3046]
[1727256632876,6.6569,150.22,150.18,16.6463]
[1727256633087,43.776884,150.24,150.16,0.345965]
[1727256633289,6.6587,150.18,150.16,0.345965]
[1727256634184,6.6591,150.17,150.16,0.345965]
[1727256636690,6.6587,150.18,150.16,0.345965]
[1727256638068,20.0,150.22,150.16,0.345965]
[1727256638272,6.6591,150.17,150.16,0.345965]
[1727256639983,6.6587,150.18,150.16,0.345965]
[1727256640180,23.776884,150.22,150.11,0.3515835]
[1727256640481,6.6592,150.17,150.12,28.9593]
[1727256640872,6.6592,150.17,150.13,1.33190592]
[1727256641169,6.6587,150.18,150.13,7.99240592]
[1727256641383,6.6587,150.18,150.14,6.6603]
[1727256641584,6.6578,150.2,150.16,6.6595]
[1727256641912,6.657,150.22,150.17,6.6589]
[1727256642088,6.6574,150.21,150.16,6.6594]
[1727256642788,6.6574,150.21,150.15,26.25152518]
[1727256643085,6.657,150.22,150.17,6.659]
[1727256644264,6.6573,150.21,150.17,6.6589]
[1727256644685,6.6569,150.22,150.17,9.60212518]
[1727256644892,6.6565,150.23,150.18,6.6585]
[1727256645400,6.6569,150.22,150.18,6.6585]
[1727256646896,6.6576,150.21,150.16,21.8587]
[1727256647107,6.6579,150.2,150.16,21.8587]
[1727256647589,6.6582,150.19,150.16,15.1995]
[1727256659198,20.0,150.25,150.16,15.1995]